[Event "Early-Titled-Tuesday-Blitz-April-16-2024"]
[Site "Chess.com"]
[Date "2024.04.16"]
[Round "9"]
[White "Orphanator2009"]
[Black "Hercog"]
[Result "1-0"]
[WhiteElo "2525"]
[BlackElo "2157"]
[TimeControl "180+1"]
[EndTime "9:50:43 PDT"]
[Termination "Orphanator2009 won by resignation"]

1. e4 {[%clk 0:03:00.9]} 1... c6 {[%clk 0:02:58.6]} 2. Nf3 {[%clk 0:03:00.7]}
2... d5 {[%clk 0:02:57.2]} 3. Nc3 {[%clk 0:03:01.6]} 3... Bg4 {[%clk 0:02:56.2]}
4. h3 {[%clk 0:03:00.7]} 4... Bxf3 {[%clk 0:02:56.6]} 5. Qxf3 {[%clk 0:03:01.6]}
5... e6 {[%clk 0:02:57.1]} 6. d3 {[%clk 0:03:01.7]} 6... Nf6 {[%clk 0:02:55.4]}
7. a3 {[%clk 0:03:01.9]} 7... d4 {[%clk 0:02:52.8]} 8. Nb1 {[%clk 0:03:01.7]}
8... Nbd7 {[%clk 0:02:51.9]} 9. g3 {[%clk 0:03:00.9]} 9... e5 {[%clk 0:02:45.3]}
10. Bg2 {[%clk 0:02:59.5]} 10... Bd6 {[%clk 0:02:41.7]} 11. O-O {[%clk 0:02:59]}
11... O-O {[%clk 0:02:41.7]} 12. Qe2 {[%clk 0:02:54.7]} 12... Ne8 {[%clk
0:02:41.7]} 13. h4 {[%clk 0:02:36.6]} 13... b5 {[%clk 0:02:38.8]} 14. Bh3 {[%clk
0:02:35.4]} 14... c5 {[%clk 0:02:37]} 15. a4 {[%clk 0:02:35.2]} 15... bxa4
{[%clk 0:02:32.9]} 16. Rxa4 {[%clk 0:02:33.5]} 16... Nb6 {[%clk 0:02:32.2]} 17.
Ra1 {[%clk 0:02:31.2]} 17... Qc7 {[%clk 0:02:29.7]} 18. b3 {[%clk 0:02:30.7]}
18... a5 {[%clk 0:02:29.7]} 19. Bd2 {[%clk 0:02:23.4]} 19... a4 {[%clk
0:02:28.6]} 20. bxa4 {[%clk 0:02:24.3]} 20... Rxa4 {[%clk 0:02:28.4]} 21. Rxa4
{[%clk 0:02:23.5]} 21... Nxa4 {[%clk 0:02:28.9]} 22. Na3 {[%clk 0:02:24.2]}
22... Nf6 {[%clk 0:02:19.1]} 23. Nc4 {[%clk 0:02:21]} 23... Nd7 {[%clk 0:02:19]}
24. Bxd7 {[%clk 0:02:16.9]} 24... Qxd7 {[%clk 0:02:19.1]} 25. Ra1 {[%clk
0:02:15]} 25... Bc7 {[%clk 0:02:09.2]} 26. Kg2 {[%clk 0:02:09.2]} 26... h6
{[%clk 0:02:05.1]} 27. Qe1 {[%clk 0:02:05]} 27... Rb8 {[%clk 0:01:59.9]} 28. Rb1
{[%clk 0:02:02.2]} 28... Rb5 {[%clk 0:01:54]} 29. Rxb5 {[%clk 0:01:58.6]} 29...
Qxb5 {[%clk 0:01:54]} 30. Qa1 {[%clk 0:01:59.5]} 30... Kh7 {[%clk 0:01:37.7]}
31. Qa2 {[%clk 0:01:57.4]} 31... f6 {[%clk 0:01:34.3]} 32. h5 {[%clk 0:01:56.6]}
32... Nb6 {[%clk 0:01:15.9]} 33. Nxb6 {[%clk 0:01:50.2]} 33... Qxb6 {[%clk
0:01:15.2]} 34. g4 {[%clk 0:01:49.3]} 34... Qb8 {[%clk 0:01:03.7]} 35. f3 {[%clk
0:01:45.3]} 35... Qg8 {[%clk 0:01:01.4]} 36. Qa7 {[%clk 0:01:12]} 36... Bd6
{[%clk 0:01:01.4]} 37. Qb6 {[%clk 0:01:10.2]} 37... Qf8 {[%clk 0:01:01.3]} 38.
Kf2 {[%clk 0:01:07.6]} 38... Qe7 {[%clk 0:01:01.4]} 39. Ke2 {[%clk 0:01:07]}
39... Kg8 {[%clk 0:01:01.6]} 40. Qb3+ {[%clk 0:01:05.2]} 40... Qf7 {[%clk
0:00:58.5]} 41. Qb6 {[%clk 0:00:51.5]} 41... Qc7 {[%clk 0:00:57.8]} 42. Qb5
{[%clk 0:00:49.1]} 42... Kf7 {[%clk 0:00:57.1]} 43. Kd1 {[%clk 0:00:47.6]} 43...
Ke7 {[%clk 0:00:56.2]} 44. Qc4 {[%clk 0:00:45.6]} 44... Qc8 {[%clk 0:00:53]} 45.
Kc1 {[%clk 0:00:43.3]} 45... Qe6 {[%clk 0:00:52]} 46. Qa6 {[%clk 0:00:38.3]}
46... Qd7 {[%clk 0:00:51.6]} 47. Kb2 {[%clk 0:00:36.7]} 47... Qc7 {[%clk
0:00:50.3]} 48. Qb5 {[%clk 0:00:31.2]} 48... Qb8 {[%clk 0:00:48.2]} 49. Qxb8
{[%clk 0:00:30.9]} 49... Bxb8 {[%clk 0:00:48.2]} 50. Kb3 {[%clk 0:00:31.8]}
50... Kd6 {[%clk 0:00:46.1]} 51. Kc4 {[%clk 0:00:30.2]} 51... Kc6 {[%clk
0:00:46.3]} 52. Ba5 {[%clk 0:00:27.7]} 52... Bd6 {[%clk 0:00:46.3]} 53. Bd8
{[%clk 0:00:27.1]} 53... Bf8 {[%clk 0:00:46.1]} 54. Ba5 {[%clk 0:00:19.6]} 54...
Bd6 {[%clk 0:00:46.3]} 55. Bd2 {[%clk 0:00:20.5]} 55... Bf8 {[%clk 0:00:46.2]}
56. f4 {[%clk 0:00:20.4]} 56... Bd6 {[%clk 0:00:37.1]} 57. f5 {[%clk 0:00:16.1]}
57... Be7 {[%clk 0:00:35]} 58. Ba5 {[%clk 0:00:14.1]} 58... Bd6 {[%clk 0:00:31]}
59. Kb3 {[%clk 0:00:13.2]} 59... Kb5 {[%clk 0:00:30.5]} 60. Bd2 {[%clk
0:00:13.7]} 60... Bf8 {[%clk 0:00:29.7]} 61. c4+ {[%clk 0:00:13.4]} 61... Kc6
{[%clk 0:00:29]} 62. Ka4 {[%clk 0:00:13.8]} 62... Be7 {[%clk 0:00:28.7]} 63. Ka5
{[%clk 0:00:14.3]} 63... Bd8+ {[%clk 0:00:25.7]} 64. Ka6 {[%clk 0:00:14.4]}
64... Bb6 {[%clk 0:00:24.6]} 65. g5 {[%clk 0:00:13.6]} 65... fxg5 {[%clk
0:00:22.3]} 66. Bxg5 {[%clk 0:00:12.7]} 66... Bc7 {[%clk 0:00:15.1]} 67. f6
{[%clk 0:00:12.2]} 67... gxf6 {[%clk 0:00:13.2]} 68. Bxf6 {[%clk 0:00:11.8]}
68... Bd6 {[%clk 0:00:11.6]} 69. Bg7 {[%clk 0:00:11.7]} 69... Be7 {[%clk
0:00:11.2]} 70. Bxh6 {[%clk 0:00:11.4]} 70... Bf6 {[%clk 0:00:11.2]} 71. Bf8
{[%clk 0:00:11]} 71... Bh8 {[%clk 0:00:11.2]} 72. h6 {[%clk 0:00:11.2]} 72...
Bf6 {[%clk 0:00:11.1]} 73. Bg7 {[%clk 0:00:11.5]} 1-0

[Event "Early-Titled-Tuesday-Blitz-April-16-2024"]
[Site "Chess.com"]
[Date "2024.04.16"]
[Round "9"]
[White "kekic76"]
[Black "NastyaHn"]
[Result "0-1"]
[WhiteElo "2337"]
[BlackElo "2470"]
[TimeControl "180+1"]
[EndTime "9:50:51 PDT"]
[Termination "NastyaHn won by resignation"]

1. c4 {[%clk 0:03:00.9]} 1... e6 {[%clk 0:02:58.8]} 2. Nc3 {[%clk 0:03:00.3]}
2... d5 {[%clk 0:02:58.6]} 3. cxd5 {[%clk 0:03:00.3]} 3... exd5 {[%clk
0:02:57.2]} 4. d4 {[%clk 0:03:00.9]} 4... Nf6 {[%clk 0:02:57.2]} 5. Bf4 {[%clk
0:03:01.4]} 5... c6 {[%clk 0:02:56.5]} 6. Nf3 {[%clk 0:03:02]} 6... Bd6 {[%clk
0:02:56.7]} 7. Bxd6 {[%clk 0:03:00.8]} 7... Qxd6 {[%clk 0:02:56.5]} 8. e3 {[%clk
0:03:01.7]} 8... Bf5 {[%clk 0:02:55]} 9. Bd3 {[%clk 0:03:01.9]} 9... Bxd3 {[%clk
0:02:54.3]} 10. Qxd3 {[%clk 0:03:02.8]} 10... O-O {[%clk 0:02:54.7]} 11. O-O
{[%clk 0:03:03.3]} 11... Nbd7 {[%clk 0:02:55]} 12. a3 {[%clk 0:03:03.8]} 12...
Rfe8 {[%clk 0:02:54.9]} 13. b4 {[%clk 0:03:04]} 13... a6 {[%clk 0:02:54.9]} 14.
Na4 {[%clk 0:03:04.4]} 14... Ne4 {[%clk 0:02:52.8]} 15. Nc5 {[%clk 0:03:03.6]}
15... Rab8 {[%clk 0:02:50.2]} 16. Nd2 {[%clk 0:02:59.5]} 16... Nxd2 {[%clk
0:02:43.3]} 17. Qxd2 {[%clk 0:02:57.4]} 17... Nb6 {[%clk 0:02:43.1]} 18. Rac1
{[%clk 0:02:44.7]} 18... Nc4 {[%clk 0:02:42.2]} 19. Qa2 {[%clk 0:02:40.3]} 19...
b5 {[%clk 0:02:34.6]} 20. Rc3 {[%clk 0:02:33.5]} 20... Ra8 {[%clk 0:02:28.9]}
21. Ra1 {[%clk 0:02:21.4]} 21... h5 {[%clk 0:02:18.4]} 22. h3 {[%clk 0:02:17.2]}
22... Qc7 {[%clk 0:02:14.9]} 23. Qb3 {[%clk 0:02:10]} 23... a5 {[%clk
0:02:06.6]} 24. Rcc1 {[%clk 0:01:38.9]} 24... a4 {[%clk 0:01:52.8]} 25. Qd3
{[%clk 0:01:32.4]} 25... Qd6 {[%clk 0:01:50.7]} 26. Qc3 {[%clk 0:01:17.4]} 26...
Ra7 {[%clk 0:01:45.3]} 27. Nd3 {[%clk 0:01:16.5]} 27... f6 {[%clk 0:01:36.4]}
28. Nf4 {[%clk 0:01:04.1]} 28... h4 {[%clk 0:01:23.6]} 29. Qd3 {[%clk
0:00:53.8]} 29... Re4 {[%clk 0:01:01.4]} 30. Qd1 {[%clk 0:00:45.4]} 30... g5
{[%clk 0:00:54]} 31. Nd3 {[%clk 0:00:30.3]} 31... Rg7 {[%clk 0:00:51]} 32. Nc5
{[%clk 0:00:18.3]} 32... Re8 {[%clk 0:00:46.6]} 33. Qf3 {[%clk 0:00:18.3]} 33...
Qe7 {[%clk 0:00:22.1]} 34. Qf5 {[%clk 0:00:15.2]} 34... Qf7 {[%clk 0:00:22.3]}
35. Nd3 {[%clk 0:00:10.7]} 35... Qg6 {[%clk 0:00:17.7]} 36. Qxg6 {[%clk
0:00:10.9]} 36... Rxg6 {[%clk 0:00:18.1]} 37. Nc5 {[%clk 0:00:11.8]} 37... f5
{[%clk 0:00:18]} 38. Re1 {[%clk 0:00:07.1]} 38... Kf7 {[%clk 0:00:17.8]} 39. Kf1
{[%clk 0:00:06.8]} 39... Reg8 {[%clk 0:00:17.2]} 40. Ke2 {[%clk 0:00:06.4]}
40... Ke7 {[%clk 0:00:14.7]} 41. Nb7 {[%clk 0:00:04.2]} 41... Kd7 {[%clk
0:00:12.4]} 42. Na5 {[%clk 0:00:04.6]} 42... Kd6 {[%clk 0:00:11.4]} 43. Nxc4+
{[%clk 0:00:04.2]} 43... dxc4 {[%clk 0:00:10.9]} 44. Rac1 {[%clk 0:00:05.1]}
44... Kd5 {[%clk 0:00:11.1]} 45. f3 {[%clk 0:00:05]} 45... g4 {[%clk 0:00:11.2]}
46. fxg4 {[%clk 0:00:04.9]} 46... fxg4 {[%clk 0:00:11.5]} 47. hxg4 {[%clk
0:00:04.6]} 47... Rxg4 {[%clk 0:00:11.4]} 48. Rg1 {[%clk 0:00:02.3]} 48... Rxg2+
{[%clk 0:00:11.5]} 49. Rxg2 {[%clk 0:00:03.2]} 49... Rxg2+ {[%clk 0:00:11.7]}
50. Kf3 {[%clk 0:00:04.1]} 50... Ra2 {[%clk 0:00:08.3]} 51. Rc3 {[%clk 0:00:03]}
51... h3 {[%clk 0:00:07.8]} 52. Rc1 {[%clk 0:00:02.6]} 52... h2 {[%clk
0:00:06.2]} 53. Rh1 {[%clk 0:00:03.1]} 53... c3 {[%clk 0:00:06.6]} 54. Kg3
{[%clk 0:00:02.6]} 54... Rd2 {[%clk 0:00:05.5]} 55. Kf3 {[%clk 0:00:03]} 55...
c2 {[%clk 0:00:05.7]} 56. Rc1 {[%clk 0:00:02.2]} 56... Kc4 {[%clk 0:00:04.4]}
57. e4 {[%clk 0:00:01.9]} 57... Kxd4 {[%clk 0:00:04.7]} 58. e5 {[%clk
0:00:01.4]} 58... Kxe5 {[%clk 0:00:04.3]} 59. Kg3 {[%clk 0:00:02.3]} 59... Rd1
{[%clk 0:00:04]} 60. Rxc2 {[%clk 0:00:02.2]} 60... h1=Q {[%clk 0:00:03.6]} 61.
Re2+ {[%clk 0:00:03.1]} 61... Kd4 {[%clk 0:00:03.2]} 62. Rc2 {[%clk 0:00:04]}
62... Qg1+ {[%clk 0:00:02.2]} 63. Kf3 {[%clk 0:00:03.9]} 63... Rf1+ {[%clk
0:00:02.9]} 64. Ke2 {[%clk 0:00:03.9]} 64... Qe3+ {[%clk 0:00:03.5]} 65. Kxf1
{[%clk 0:00:03.6]} 65... Qd3+ {[%clk 0:00:04]} 66. Re2 {[%clk 0:00:04]} 66...
Kc3 {[%clk 0:00:04.3]} 67. Kf2 {[%clk 0:00:04.5]} 67... Qxe2+ {[%clk 0:00:04.2]}
68. Kxe2 {[%clk 0:00:04.7]} 68... Kb3 {[%clk 0:00:04]} 69. Kd3 {[%clk
0:00:05.6]} 69... Kxa3 {[%clk 0:00:04.4]} 70. Kc3 {[%clk 0:00:06.5]} 70... c5
{[%clk 0:00:02.8]} 71. bxc5 {[%clk 0:00:06.6]} 71... b4+ {[%clk 0:00:03.3]} 72.
Kc4 {[%clk 0:00:07.1]} 72... b3 {[%clk 0:00:03.8]} 73. c6 {[%clk 0:00:07.8]}
73... b2 {[%clk 0:00:04.3]} 74. c7 {[%clk 0:00:07.2]} 74... b1=Q {[%clk
0:00:04.6]} 75. Kd5 {[%clk 0:00:07.4]} 75... Qc1 {[%clk 0:00:04.8]} 76. Kd6
{[%clk 0:00:08]} 76... Kb2 {[%clk 0:00:05]} 77. Kd7 {[%clk 0:00:07.7]} 77... a3
{[%clk 0:00:05.5]} 78. c8=Q {[%clk 0:00:08.6]} 78... Qxc8+ {[%clk 0:00:05.6]}
79. Kxc8 {[%clk 0:00:09.3]} 79... a2 {[%clk 0:00:06.3]} 80. Kc7 {[%clk
0:00:10.2]} 80... a1=Q {[%clk 0:00:06.5]} 81. Kb7 {[%clk 0:00:11.1]} 81... Qa5
{[%clk 0:00:06.6]} 82. Kc6 {[%clk 0:00:12]} 82... Kb3 {[%clk 0:00:07.1]} 0-1

[Event "Early-Titled-Tuesday-Blitz-April-16-2024"]
[Site "Chess.com"]
[Date "2024.04.16"]
[Round "9"]
[White "Witik"]
[Black "sathvikadiga"]
[Result "0-1"]
[WhiteElo "2703"]
[BlackElo "2603"]
[TimeControl "180+1"]
[EndTime "9:50:52 PDT"]
[Termination "sathvikadiga won on time"]

1. d4 {[%clk 0:02:59.4]} 1... Nf6 {[%clk 0:02:59.3]} 2. Nf3 {[%clk 0:02:59.5]}
2... g6 {[%clk 0:02:59]} 3. g3 {[%clk 0:02:58.7]} 3... Bg7 {[%clk 0:02:59.9]} 4.
Bg2 {[%clk 0:02:59.2]} 4... d6 {[%clk 0:03:00.6]} 5. O-O {[%clk 0:02:57.1]} 5...
O-O {[%clk 0:03:01.5]} 6. b3 {[%clk 0:02:57.7]} 6... Nc6 {[%clk 0:03:01]} 7. Bb2
{[%clk 0:02:55.3]} 7... e5 {[%clk 0:02:59.9]} 8. dxe5 {[%clk 0:02:55.3]} 8...
Ng4 {[%clk 0:03:00.2]} 9. c4 {[%clk 0:02:42.5]} 9... Ngxe5 {[%clk 0:02:56.2]}
10. Nxe5 {[%clk 0:02:38.8]} 10... dxe5 {[%clk 0:02:53.5]} 11. Nc3 {[%clk
0:02:36.7]} 11... Be6 {[%clk 0:02:52.7]} 12. Bxc6 {[%clk 0:02:14.5]} 12... bxc6
{[%clk 0:02:51.5]} 13. Qxd8 {[%clk 0:02:13.7]} 13... Rfxd8 {[%clk 0:02:52.4]}
14. Rfd1 {[%clk 0:02:13.7]} 14... e4 {[%clk 0:02:49.2]} 15. Na4 {[%clk
0:02:11.2]} 15... Bxb2 {[%clk 0:02:36.3]} 16. Nxb2 {[%clk 0:02:10.9]} 16... Bg4
{[%clk 0:02:37]} 17. Kf1 {[%clk 0:02:07.5]} 17... Kf8 {[%clk 0:02:34.3]} 18. Na4
{[%clk 0:02:02.4]} 18... f5 {[%clk 0:01:59.5]} 19. Ke1 {[%clk 0:01:53.1]} 19...
Ke7 {[%clk 0:01:58.2]} 20. Rxd8 {[%clk 0:01:51.1]} 20... Rxd8 {[%clk 0:01:59.1]}
21. Rd1 {[%clk 0:01:51.5]} 21... Rf8 {[%clk 0:01:50.9]} 22. Nc5 {[%clk 0:01:50]}
22... f4 {[%clk 0:01:50.6]} 23. Nxe4 {[%clk 0:01:48.8]} 23... h5 {[%clk
0:01:40.4]} 24. Nc5 {[%clk 0:01:36.3]} 24... Rf5 {[%clk 0:01:19.8]} 25. b4
{[%clk 0:01:24.3]} 25... Re5 {[%clk 0:01:01.6]} 26. Rd2 {[%clk 0:01:18.4]} 26...
g5 {[%clk 0:00:59.8]} 27. Kd1 {[%clk 0:00:58.4]} 27... fxg3 {[%clk 0:00:52.8]}
28. fxg3 {[%clk 0:00:53.8]} 28... Rf5 {[%clk 0:00:33.4]} 29. Kc2 {[%clk
0:00:49.2]} 29... Rf1 {[%clk 0:00:26.5]} 30. e4 {[%clk 0:00:40.8]} 30... h4
{[%clk 0:00:21.2]} 31. gxh4 {[%clk 0:00:38]} 31... gxh4 {[%clk 0:00:22.1]} 32.
e5 {[%clk 0:00:33.1]} 32... h3 {[%clk 0:00:20.4]} 33. e6 {[%clk 0:00:33]} 33...
Bf5+ {[%clk 0:00:15.2]} 34. Kc3 {[%clk 0:00:28.9]} 34... Ke8 {[%clk 0:00:09.5]}
35. Kd4 {[%clk 0:00:25.1]} 35... Re1 {[%clk 0:00:09.4]} 36. Rf2 {[%clk
0:00:14.6]} 36... Bg4 {[%clk 0:00:09.4]} 37. Rf4 {[%clk 0:00:11.6]} 37... Bxe6
{[%clk 0:00:07.8]} 38. Nxe6 {[%clk 0:00:10.9]} 38... Rxe6 {[%clk 0:00:08.7]} 39.
Rh4 {[%clk 0:00:11.6]} 39... Re2 {[%clk 0:00:08]} 40. Rxh3 {[%clk 0:00:12.2]}
40... Rxa2 {[%clk 0:00:08.1]} 41. Kc5 {[%clk 0:00:13]} 41... Rc2 {[%clk
0:00:08.1]} 42. Rh7 {[%clk 0:00:12.2]} 42... Kd8 {[%clk 0:00:08.1]} 43. h4
{[%clk 0:00:12.6]} 43... Kc8 {[%clk 0:00:08.6]} 44. h5 {[%clk 0:00:13.1]} 44...
Kb7 {[%clk 0:00:09.2]} 45. h6 {[%clk 0:00:13.2]} 45... Rh2 {[%clk 0:00:09.8]}
46. Rh8 {[%clk 0:00:13.8]} 46... Rh5+ {[%clk 0:00:10.1]} 47. Kd4 {[%clk
0:00:14.4]} 47... Rh4+ {[%clk 0:00:11]} 48. Kc3 {[%clk 0:00:14.6]} 48... Rh3+
{[%clk 0:00:11.4]} 49. Kc2 {[%clk 0:00:15.2]} 49... Rh2+ {[%clk 0:00:11.8]} 50.
Kb3 {[%clk 0:00:15.8]} 50... Rh3+ {[%clk 0:00:12.3]} 51. Ka4 {[%clk 0:00:16.5]}
51... Rh4 {[%clk 0:00:13]} 52. c5 {[%clk 0:00:17.1]} 52... Rh5 {[%clk
0:00:11.5]} 53. Ka5 {[%clk 0:00:14.9]} 53... Rh4 {[%clk 0:00:11.6]} 54. Ka4
{[%clk 0:00:12.7]} 54... Rh5 {[%clk 0:00:11]} 55. Kb3 {[%clk 0:00:13.1]} 55...
Rh4 {[%clk 0:00:11.1]} 56. Kc3 {[%clk 0:00:13.5]} 56... Ka6 {[%clk 0:00:09.9]}
57. Rh7 {[%clk 0:00:11.7]} 57... Kb7 {[%clk 0:00:09.9]} 58. Kb3 {[%clk
0:00:12.3]} 58... Kb8 {[%clk 0:00:08.5]} 59. Kc3 {[%clk 0:00:09.8]} 59... Kb7
{[%clk 0:00:08.7]} 60. Kd3 {[%clk 0:00:10.4]} 60... Rxb4 {[%clk 0:00:05.1]} 61.
Rf7 {[%clk 0:00:10.8]} 61... Rh4 {[%clk 0:00:05.8]} 62. h7 {[%clk 0:00:11.4]}
62... a5 {[%clk 0:00:05.9]} 63. Kc3 {[%clk 0:00:09.6]} 63... a4 {[%clk 0:00:06]}
64. Kb2 {[%clk 0:00:09.3]} 64... Ka6 {[%clk 0:00:06.7]} 65. Rxc7 {[%clk
0:00:09]} 65... Kb5 {[%clk 0:00:07.4]} 66. Ka3 {[%clk 0:00:05.5]} 66... Kxc5
{[%clk 0:00:06.9]} 67. Ra7 {[%clk 0:00:04.2]} 67... Kb5 {[%clk 0:00:07.1]} 68.
Rb7+ {[%clk 0:00:02.2]} 68... Ka5 {[%clk 0:00:06.9]} 69. Ra7+ {[%clk 0:00:02.6]}
69... Kb5 {[%clk 0:00:07.5]} 70. Rb7+ {[%clk 0:00:02.9]} 70... Kc5 {[%clk
0:00:07.8]} 71. Ra7 {[%clk 0:00:03.2]} 71... Kd5 {[%clk 0:00:07.2]} 72. Rg7
{[%clk 0:00:02]} 72... c5 {[%clk 0:00:06.2]} 73. Ra7 {[%clk 0:00:01.6]} 73...
Kc6 {[%clk 0:00:05]} 0-1

[Event "Early-Titled-Tuesday-Blitz-April-16-2024"]
[Site "Chess.com"]
[Date "2024.04.16"]
[Round "9"]
[White "Hudijegszid"]
[Black "theoneandonlydaaevik"]
[Result "0-1"]
[WhiteElo "2461"]
[BlackElo "2589"]
[TimeControl "180+1"]
[EndTime "9:51:03 PDT"]
[Termination "theoneandonlydaaevik won by resignation"]

1. e4 {[%clk 0:02:50.7]} 1... c5 {[%clk 0:02:58.5]} 2. Nf3 {[%clk 0:02:48.4]}
2... e6 {[%clk 0:02:58.8]} 3. d4 {[%clk 0:02:48.6]} 3... cxd4 {[%clk 0:02:59.7]}
4. Nxd4 {[%clk 0:02:49.2]} 4... Nf6 {[%clk 0:03:00.6]} 5. Nc3 {[%clk 0:02:49]}
5... Nc6 {[%clk 0:03:01.3]} 6. Nxc6 {[%clk 0:02:38.3]} 6... bxc6 {[%clk
0:03:02.2]} 7. e5 {[%clk 0:02:38.7]} 7... Nd5 {[%clk 0:03:02.1]} 8. Ne4 {[%clk
0:02:39.2]} 8... Bb7 {[%clk 0:03:00.5]} 9. Bd3 {[%clk 0:02:31.4]} 9... Qc7
{[%clk 0:03:00.4]} 10. f4 {[%clk 0:02:29.9]} 10... c5 {[%clk 0:03:00.5]} 11. O-O
{[%clk 0:02:26.6]} 11... c4 {[%clk 0:03:00.1]} 12. Be2 {[%clk 0:02:25.6]} 12...
Bc5+ {[%clk 0:02:56.9]} 13. Kh1 {[%clk 0:02:22.9]} 13... O-O {[%clk 0:02:53.3]}
14. Nxc5 {[%clk 0:02:20.1]} 14... Qxc5 {[%clk 0:02:53]} 15. Bf3 {[%clk
0:02:20.6]} 15... Rab8 {[%clk 0:02:53.1]} 16. Qe2 {[%clk 0:02:15.2]} 16... f5
{[%clk 0:02:48.6]} 17. Bd2 {[%clk 0:01:54.7]} 17... Bc6 {[%clk 0:02:42.4]} 18.
b3 {[%clk 0:01:51]} 18... c3 {[%clk 0:02:41.8]} 19. Bc1 {[%clk 0:01:47.4]} 19...
Kh8 {[%clk 0:02:37.8]} 20. Qf2 {[%clk 0:01:47.5]} 20... Qxf2 {[%clk 0:02:34.5]}
21. Rxf2 {[%clk 0:01:47.2]} 21... a5 {[%clk 0:02:35.1]} 22. a3 {[%clk
0:01:46.5]} 22... Rfc8 {[%clk 0:02:33.1]} 23. Kg1 {[%clk 0:01:44.3]} 23... Ne7
{[%clk 0:02:18.6]} 24. Be2 {[%clk 0:01:41.3]} 24... Be4 {[%clk 0:02:13.8]} 25.
Bc4 {[%clk 0:01:27.3]} 25... Nd5 {[%clk 0:02:04.5]} 26. Bxd5 {[%clk 0:01:11.9]}
26... Bxd5 {[%clk 0:01:59]} 27. Be3 {[%clk 0:01:12.8]} 27... Be4 {[%clk
0:01:58.9]} 28. Rd1 {[%clk 0:01:08.8]} 28... Bd5 {[%clk 0:01:58.4]} 29. Bd4
{[%clk 0:01:05.1]} 29... Be4 {[%clk 0:01:55.3]} 30. Be3 {[%clk 0:01:05.2]} 30...
Rb7 {[%clk 0:01:55.4]} 31. Rd6 {[%clk 0:01:01.2]} 31... Bd5 {[%clk 0:01:51.7]}
32. Kf1 {[%clk 0:00:51.5]} 32... Kg8 {[%clk 0:01:33.5]} 33. Ke1 {[%clk
0:00:50.5]} 33... Kf7 {[%clk 0:01:33.2]} 34. Kd1 {[%clk 0:00:45.1]} 34... Ra8
{[%clk 0:01:30]} 35. Kc1 {[%clk 0:00:32.6]} 35... Ke8 {[%clk 0:01:17.2]} 36. g3
{[%clk 0:00:30]} 36... Rb5 {[%clk 0:01:07.1]} 37. Bd4 {[%clk 0:00:22.6]} 37...
Rc8 {[%clk 0:01:05.9]} 38. Re2 {[%clk 0:00:21.9]} 38... a4 {[%clk 0:00:58.8]}
39. b4 {[%clk 0:00:21.6]} 39... Rc4 {[%clk 0:00:58.4]} 40. Bc5 {[%clk
0:00:18.7]} 40... Kd8 {[%clk 0:00:47.1]} 41. Re3 {[%clk 0:00:18.6]} 41... Kc7
{[%clk 0:00:46.7]} 42. Ra6 {[%clk 0:00:17.3]} 42... Bb7 {[%clk 0:00:44.8]} 43.
Bd6+ {[%clk 0:00:10.9]} 43... Kc8 {[%clk 0:00:45]} 44. Rxa4 {[%clk 0:00:11.5]}
44... Rd5 {[%clk 0:00:41.6]} 45. Ra5 {[%clk 0:00:09.7]} 45... Rdd4 {[%clk
0:00:18.4]} 46. Rc5+ {[%clk 0:00:09.2]} 46... Rxc5 {[%clk 0:00:14.9]} 47. Bxc5
{[%clk 0:00:10.1]} 47... Rc4 {[%clk 0:00:15.5]} 48. Kb1 {[%clk 0:00:08.4]} 48...
Bc6 {[%clk 0:00:14.4]} 49. Rd3 {[%clk 0:00:04.5]} 49... Bd5 {[%clk 0:00:14.4]}
50. Rd4 {[%clk 0:00:04.5]} 50... Kb7 {[%clk 0:00:10.2]} 51. Rxc4 {[%clk
0:00:04.8]} 51... Bxc4 {[%clk 0:00:10.2]} 52. Bd4 {[%clk 0:00:05.5]} 52... Kc6
{[%clk 0:00:11.1]} 53. Bxc3 {[%clk 0:00:06]} 53... Bb5 {[%clk 0:00:11.9]} 54.
Kb2 {[%clk 0:00:05.1]} 54... Ba4 {[%clk 0:00:11.1]} 55. Be1 {[%clk 0:00:04.4]}
55... Kd5 {[%clk 0:00:10.9]} 56. Kc3 {[%clk 0:00:04.6]} 56... Ke4 {[%clk
0:00:07.1]} 57. Bf2 {[%clk 0:00:04.2]} 57... Kf3 {[%clk 0:00:07.4]} 58. Ba7
{[%clk 0:00:04]} 58... Kg2 {[%clk 0:00:07.9]} 59. Kd3 {[%clk 0:00:04.4]} 59...
Kxh2 {[%clk 0:00:07.8]} 60. c4 {[%clk 0:00:05.1]} 60... Kxg3 {[%clk 0:00:07.8]}
61. b5 {[%clk 0:00:03.2]} 61... h5 {[%clk 0:00:07.8]} 62. Kc3 {[%clk 0:00:03]}
62... h4 {[%clk 0:00:07.8]} 63. Kb4 {[%clk 0:00:03.6]} 63... Bd1 {[%clk
0:00:06]} 64. c5 {[%clk 0:00:02.8]} 64... Bf3 {[%clk 0:00:05.2]} 65. c6 {[%clk
0:00:01.7]} 65... dxc6 {[%clk 0:00:05.5]} 66. b6 {[%clk 0:00:02.4]} 66... c5+
{[%clk 0:00:06.1]} 67. Kxc5 {[%clk 0:00:03.1]} 67... h3 {[%clk 0:00:06.7]} 68.
a4 {[%clk 0:00:03]} 68... h2 {[%clk 0:00:07.1]} 69. a5 {[%clk 0:00:03.6]} 69...
h1=Q {[%clk 0:00:07.4]} 70. a6 {[%clk 0:00:04.3]} 70... Qc1+ {[%clk 0:00:07.8]}
71. Kd6 {[%clk 0:00:04.7]} 71... Qc6+ {[%clk 0:00:08.4]} 72. Ke7 {[%clk
0:00:05.1]} 72... Qc8 {[%clk 0:00:04.3]} 73. Kf7 {[%clk 0:00:02.5]} 73... Qxa6
{[%clk 0:00:04]} 74. Kxe6 {[%clk 0:00:03.1]} 74... Qb7 {[%clk 0:00:04.5]} 75.
Kxf5 {[%clk 0:00:03]} 75... Be4+ {[%clk 0:00:05.1]} 76. Ke6 {[%clk 0:00:02]}
76... Bd5+ {[%clk 0:00:05.7]} 77. Kd6 {[%clk 0:00:02.3]} 77... Qc6+ {[%clk
0:00:06]} 78. Ke7 {[%clk 0:00:03.1]} 78... Qe6+ {[%clk 0:00:06.5]} 79. Kd8
{[%clk 0:00:03.8]} 79... Bb7 {[%clk 0:00:03.7]} 80. Bb8 {[%clk 0:00:03.6]} 80...
Qc8+ {[%clk 0:00:03.6]} 0-1